[Event "3rd Rio Open-Blitz 2024"]
[Site "Rio de Janeiro"]
[Date "2024.04.27"]
[Round "3.1"]
[White "Hoffman, Alejandro"]
[Black "Zacarias, Rodrigo Medeiros"]
[Result "1-0"]
[ECO "A11"]
[WhiteElo "2379"]
[BlackElo "2101"]
[Annotator "TA"]
[PlyCount "99"]
[EventDate "2024.04.12"]
[EventType "swiss"]
[EventCountry "BRA"]
[SourceTitle "playchess.com"]
[Source "ChessBase"]
[SourceQuality "1"]
[TimeControl "180+2"]

{[%evp 9,99,8,19,29,22,25,15,21,35,39,63,8,0,10,15,16,28,29,83,83,77,93,108,58,63,9,16,1,17,-2,1,0,52,50,42,12,13,12,18,12,16,0,0,-11,0,0,0,0,1,0,0,0,0,0,2,4,8,8,33,38,60,27,29,18,100,86,178,174,139,124,258,264,222,268,224,257,258,206,213,206,591,591,5257,5218,5110,5014,5206,4806,29976,29977,29973,29975]} 1. Nf3 {[%emt 0:00:02]} d5 {[%emt 0:00:01]} 2. c4 {[%emt 0:00:01]} c6 {[%emt 0:00:02]} 3. e3 {[%emt 0:00:03]} Nf6 {[%emt 0:00:02]} 4. Nc3 {[%emt 0:00:01]} e6 {[%emt 0:00:03]} 5. b3 {[%emt 0:00:08]} Be7 {[%emt 0:00:06]} 6. Bb2 {[%emt 0:00:03]} O-O {[%emt 0:00:03]} 7. d4 {[%emt 0:00:02]} Nbd7 {[%emt 0:00:20]} 8. Bd3 {[%emt 0:00:03] The position is equal.} a6 {[%emt 0:00:10]} 9. O-O {[%emt 0:00:12]} b5 {[%emt 0:00:03]} 10. e4 {[%emt 0:00:09]} ({Better is} 10. c5 $14) 10... b4 {[%emt 0:00:19]} 11. e5 $1 {[%emt 0:00:04]} bxc3 {[%emt 0:00:05]} 12. exf6 {[%emt 0:00:03]} Bxf6 {[%emt 0:00:14]} 13. Bxc3 {[%emt 0:00:03]} c5 {[%emt 0:00:05]} (13... a5 $11 {remains equal.}) 14. cxd5 $16 {[%emt 0:00:05]} exd5 {[%emt 0:00:04]} 15. Qc2 {[%emt 0:00:06] Black must now prevent dxc5.} cxd4 {[%emt 0:00:41]} 16. Nxd4 {[%emt 0:00:23] White is much more active. The black rooks are passive.} (16. Bxh7+ $16 Kh8 17. Bb4 (17. Bxd4 Bxd4 18. Nxd4 Qh4 $17)) 16... g6 $14 {[%emt 0:00:16]} 17. Rfe1 {[%emt 0:00:02]} ({White should try} 17. Nc6 $14 Qb6 18. Bxf6 Nxf6 19. Rfc1) 17... Bb7 $11 {[%emt 0:00:04] aiming for ...Rc8.} 18. Qb2 {[%emt 0:00:04]} Re8 {[%emt 0:00:10]} 19. h3 {[%emt 0:00:05]} Qb6 {[%emt 0:00:08] And now ...Rec8 would win.} 20. Nf3 {[%emt 0:00:22]} Rac8 {[%emt 0:00:16]} (20... d4 $11 21. Bxd4 (21. Nxd4 Rec8 $11) 21... Bxf3 22. Bxf6 Nxf6) 21. Rxe8+ {[%emt 0:00:03]} Rxe8 {[%emt 0:00:02]} 22. Rd1 {[%emt 0:00:03]} Bxc3 {[%emt 0:00:11]} 23. Qxc3 {[%emt 0:00:02]} Nc5 {[%emt 0:00:08]} 24. Qd4 {[%emt 0:00:06]} Qd6 {[%emt 0:00:04]} 25. Bc2 {[%emt 0:00:09]} Ne6 {[%emt 0:00:03]} 26. Qf6 {[%emt 0:01:30]} Qe7 {[%emt 0:00:06]} 27. Qxe7 {[%emt 0:00:00]} Rxe7 {[%emt 0:00:01]} 28. Bd3 {[%emt 0:00:00]} Nc5 {[%emt 0:00:02]} 29. Nd4 {[%emt 0:00:00]} Nxd3 {[%emt 0:00:04]} 30. Rxd3 {[%emt 0:00:00][%mdl 4096] Endgame. KRB-KRN} Re1+ {[%emt 0:00:02]} 31. Kh2 {[%emt 0:00:00]} Ra1 {[%emt 0:00:02]} 32. Rd2 {[%emt 0:00:00]} Rc1 {[%emt 0:00:02]} 33. f3 {[%emt 0:00:00]} Kf8 {[%emt 0:00:04]} 34. Kg3 {[%emt 0:00:16]} h5 {[%emt 0:00:02]} 35. h4 {[%emt 0:00:00]} Kg7 {[%emt 0:00:01]} 36. Kf4 {[%emt 0:00:00]} Re1 {[%emt 0:00:03]} (36... Kf6 $11) 37. Rc2 $16 {[%emt 0:00:00]} Re7 {[%emt 0:00:02] Prevents Rc7.} (37... Rd1 $16 38. Ke3 a5) 38. b4 $18 {[%emt 0:00:00]} f6 {[%emt 0:00:03]} 39. a4 {[%emt 0:00:00][%cal Ba2a4,Ba4b5,Bb5b6][%mdl 32]} Ba8 {[%emt 0:00:02] Loses the game.} (39... Kf8 $16 40. Rc5 Ke8) 40. Rc8 {[%emt 0:00:00]} Bb7 {[%emt 0:00:01]} 41. Rb8 {[%emt 0:00:00]} Kf7 {[%emt 0:00:02]} 42. b5 {[%emt 0:00:00]} axb5 {[%emt 0:00:01]} 43. axb5 {[%emt 0:00:00] Kg3 would now be deadly.} Rc7 {[%emt 0:00:02]} 44. b6 {[%emt 0:00:00]} Re7 {[%emt 0:00:02] [#]} (44... Rd7 {is more resistant.} 45. Ke3 Ke7) 45. Nb5 {[%emt 0:00:00]} d4 {[%emt 0:00:03]} 46. Nd6+ {[%emt 0:00:00]} Ke6 {[%emt 0:00:01]} 47. Nxb7 {[%emt 0:00:00]} Kd5 {[%emt 0:00:02]} 48. Rd8+ {[%emt 0:00:00]} Kc4 {[%emt 0:00:01]} 49. Nd6+ {[%emt 0:00:00]} Kc3 {[%emt 0:00:02]} 50. b7 {[%emt 0:00:00] Weighted Error Value: White=0.11 (very precise) /Black=0.48.  Mistake:       	White=3     	Black=6      Inaccurate:     	White=2     	Black=1      OK:         	White=14    	Black=13     Best:        	White=2     	Black=3      Strong:       	White=1     	---} 1-0

[Event "3rd Rio Open-Blitz 2024"]
[Site "Rio de Janeiro"]
[Date "2024.04.27"]
[Round "3.2"]
[White "De Siqueira, Luigy Lira"]
[Black "Becker, Rogerio Sperb"]
[Result "1-0"]
[ECO "B05"]
[WhiteElo "2274"]
[BlackElo "2054"]
[Annotator "NA RC"]
[PlyCount "111"]
[EventDate "2024.04.12"]
[EventType "swiss"]
[EventCountry "BRA"]
[SourceTitle "playchess.com"]
[Source "ChessBase"]
[SourceQuality "1"]
[TimeControl "180+2"]

1. e4 {[%emt 0:00:02]} Nf6 {[%emt 0:00:01]} 2. e5 {[%emt 0:00:02]} Nd5 {[%emt 0:00:01]} 3. d4 {[%emt 0:00:01]} d6 {[%emt 0:00:00]} 4. Nf3 {[%emt 0:00:01]} Bg4 {[%emt 0:00:01]} 5. Be2 {[%emt 0:00:04]} c6 {[%emt 0:00:02]} 6. O-O {[%emt 0:00:02]} Bxf3 {[%emt 0:00:01]} 7. Bxf3 {[%emt 0:00:02]} dxe5 {[%emt 0:00:01]} 8. dxe5 {[%emt 0:00:01]} e6 {[%emt 0:00:01]} 9. c4 {[%emt 0:00:02]} Ne7 {[%emt 0:00:01]} 10. Nc3 {[%emt 0:00:01]} Ng6 {[%emt 0:00:33]} 11. Re1 {[%emt 0:00:46]} Qc7 {[%emt 0:00:02]} 12. Bh5 {[%emt 0:00:14]} Bc5 {[%emt 0:01:21]} 13. Ne4 {[%emt 0:00:37]} Qxe5 {[%emt 0:00:12]} 14. Bg5 {[%emt 0:00:01]} Qd4 {[%emt 0:00:13]} 15. Qxd4 {[%emt 0:00:09]} Bxd4 {[%emt 0:00:03]} 16. Rad1 {[%emt 0:00:03]} c5 {[%emt 0:00:14]} 17. Nxc5 {[%emt 0:00:01]} Bf6 {[%emt 0:00:04]} 18. Bxf6 {[%emt 0:00:11]} gxf6 {[%emt 0:00:01]} 19. Bxg6 {[%emt 0:00:09]} hxg6 {[%emt 0:00:02]} 20. Nxb7 {[%emt 0:00:01]} Nc6 {[%emt 0:00:03]} 21. Nc5 {[%emt 0:00:11]} Rc8 {[%emt 0:00:05]} 22. b3 {[%emt 0:00:04]} O-O {[%emt 0:00:06]} 23. Nd7 {[%emt 0:00:03]} Rfd8 {[%emt 0:00:01]} 24. Nxf6+ {[%emt 0:00:02]} Kg7 {[%emt 0:00:01]} 25. Ne4 {[%emt 0:00:05]} Nd4 {[%emt 0:00:00]} 26. Kf1 {[%emt 0:00:06]} e5 {[%emt 0:00:04]} 27. Nc3 {[%emt 0:00:04]} f6 {[%emt 0:00:02]} 28. Nd5 {[%emt 0:00:02]} g5 {[%emt 0:00:07]} 29. g3 {[%emt 0:00:17]} Rh8 {[%emt 0:00:05]} 30. Kg2 {[%emt 0:00:01]} Rce8 {[%emt 0:00:03]} 31. f4 {[%emt 0:00:03]} gxf4 {[%emt 0:00:02]} 32. gxf4 {[%emt 0:00:01]} Nf5 {[%emt 0:00:08]} 33. fxe5 {[%emt 0:00:02]} fxe5 {[%emt 0:00:02]} 34. c5 {[%emt 0:00:08]} Nd4 {[%emt 0:00:03]} 35. b4 {[%emt 0:00:05]} Kf7 {[%emt 0:00:01]} 36. a3 {[%emt 0:00:04]} Reg8+ {[%emt 0:00:01]} 37. Kh1 {[%emt 0:00:03]} Nf3 {[%emt 0:00:02]} 38. Re2 {[%emt 0:00:01]} Ke6 {[%emt 0:00:05]} 39. Nf4+ {[%emt 0:00:01]} Kf5 {[%emt 0:00:01]} 40. Nd3 {[%emt 0:00:01]} e4 {[%emt 0:00:02]} 41. Rf1 {[%emt 0:00:03]} Rg7 {[%emt 0:00:02]} 42. c6 {[%emt 0:00:02]} Rgh7 {[%emt 0:00:01]} 43. Rff2 {[%emt 0:00:08]} Rd8 {[%emt 0:00:02]} 44. Ne1 {[%emt 0:00:10]} Rd1 {[%emt 0:00:01]} 45. Rf1 {[%emt 0:00:05]} a6 {[%emt 0:00:04]} 46. a4 {[%emt 0:00:01]} Rb1 {[%emt 0:00:01]} 47. b5 {[%emt 0:00:04]} axb5 {[%emt 0:00:01]} 48. axb5 {[%emt 0:00:01]} Kf4 {[%emt 0:00:03]} 49. Ref2 {[%emt 0:00:03]} Rxb5 {[%emt 0:00:05]} 50. Nxf3 {[%emt 0:00:01]} exf3 {[%emt 0:00:01]} 51. Rxf3+ {[%emt 0:00:00]} Ke4 {[%emt 0:00:00]} 52. Rf7 {[%emt 0:00:02]} Rh6 {[%emt 0:00:02]} 53. c7 {[%emt 0:00:01]} Rc6 {[%emt 0:00:01]} 54. Re1+ {[%emt 0:00:01]} Kd5 {[%emt 0:00:02]} 55. Rd7+ {[%emt 0:00:01]} Kc5 {[%emt 0:00:05]} 56. Rc1+ {[%emt 0:00:01]} 1-0

[Event "3rd Rio Open-Blitz 2024"]
[Site "Rio de Janeiro"]
[Date "2024.04.27"]
[Round "3.3"]
[White "Mafra, Kaiser Luiz"]
[Black "Oliveira, Fernando Ventura"]
[Result "0-1"]
[ECO "B23"]
[WhiteElo "2074"]
[BlackElo "2044"]
[Annotator "NA RC"]
[PlyCount "101"]
[EventDate "2024.04.12"]
[EventType "swiss"]
[EventCountry "BRA"]
[SourceTitle "playchess.com"]
[Source "ChessBase"]
[SourceQuality "1"]
[TimeControl "180+2"]

1. e4 {[%emt 0:00:02]} c5 {[%emt 0:00:00]} 2. Nc3 {[%emt 0:00:01]} Nc6 {[%emt 0:00:01]} 3. f4 {[%emt 0:00:01]} g6 {[%emt 0:00:02]} 4. Nf3 {[%emt 0:00:01]} Bg7 {[%emt 0:00:01]} 5. Bc4 {[%emt 0:00:01]} e6 {[%emt 0:00:01]} 6. f5 {[%emt 0:00:01]} a6 {[%emt 0:00:07]} 7. a4 {[%emt 0:00:02]} Nge7 {[%emt 0:00:12]} 8. fxe6 {[%emt 0:00:04]} dxe6 {[%emt 0:00:02]} 9. O-O {[%emt 0:00:05]} O-O {[%emt 0:00:03]} 10. d3 {[%emt 0:00:02]} Nd4 {[%emt 0:00:04]} 11. Nxd4 {[%emt 0:00:02]} Qxd4+ {[%emt 0:00:10]} 12. Kh1 {[%emt 0:00:02]} Nc6 {[%emt 0:00:05]} 13. Ne2 {[%emt 0:00:33]} Qd6 {[%emt 0:00:04]} 14. Bf4 {[%emt 0:00:05]} e5 {[%emt 0:00:03]} 15. Bg3 {[%emt 0:00:26]} Be6 {[%emt 0:00:03]} 16. Bxe6 {[%emt 0:00:10]} Qxe6 {[%emt 0:00:01]} 17. Nc3 {[%emt 0:00:02]} Rad8 {[%emt 0:00:17]} 18. Nd5 {[%emt 0:00:02]} Rxd5 {[%emt 0:00:02]} 19. exd5 {[%emt 0:00:01]} Qxd5 {[%emt 0:00:01]} 20. Qf3 {[%emt 0:00:16]} Qd4 {[%emt 0:00:08]} 21. c3 {[%emt 0:00:03]} Qd7 {[%emt 0:00:07]} 22. Rfe1 {[%emt 0:00:16]} Rd8 {[%emt 0:00:14]} 23. Bf2 {[%emt 0:00:21]} b6 {[%emt 0:00:18]} 24. h3 {[%emt 0:00:07]} Na5 {[%emt 0:00:13]} 25. b4 {[%emt 0:00:28]} cxb4 {[%emt 0:00:17]} 26. Bxb6 {[%emt 0:00:02]} Nb3 {[%emt 0:00:09]} 27. Bxd8 {[%emt 0:00:05]} Nxa1 {[%emt 0:00:03]} 28. Rxa1 {[%emt 0:00:05]} Qxd8 {[%emt 0:00:05]} 29. Qe4 {[%emt 0:00:17]} bxc3 {[%emt 0:00:11]} 30. Rc1 {[%emt 0:00:01]} Qd4 {[%emt 0:00:16]} 31. Qa8+ {[%emt 0:00:02]} Bf8 {[%emt 0:00:03]} 32. Qc8 {[%emt 0:00:02]} Qxd3 {[%emt 0:00:06]} 33. Qxc3 {[%emt 0:00:03]} Qe4 {[%emt 0:00:07]} 34. Qc4 {[%emt 0:00:05]} Qb7 {[%emt 0:00:06]} 35. Qc8 {[%emt 0:00:04]} Qb2 {[%emt 0:00:05]} 36. Rf1 {[%emt 0:00:09]} Qe2 {[%emt 0:00:04]} 37. Qc1 {[%emt 0:00:04]} Kg7 {[%emt 0:00:01]} 38. Re1 {[%emt 0:00:01]} Qf2 {[%emt 0:00:06]} 39. Qe3 {[%emt 0:00:01]} Qxe3 {[%emt 0:00:03]} 40. Rxe3 {[%emt 0:00:00]} Bd6 {[%emt 0:00:01]} 41. a5 {[%emt 0:00:02]} f5 {[%emt 0:00:02]} 42. Rb3 {[%emt 0:00:02]} Bc5 {[%emt 0:00:02]} 43. Rb6 {[%emt 0:00:02]} e4 {[%emt 0:00:02]} 44. Rxa6 {[%emt 0:00:01]} Kf7 {[%emt 0:00:02]} 45. Rc6 {[%emt 0:00:02]} Bd4 {[%emt 0:00:04]} 46. a6 {[%emt 0:00:02]} e3 {[%emt 0:00:02]} 47. Rc2 {[%emt 0:00:05]} Ke6 {[%emt 0:00:03]} 48. Kh2 {[%emt 0:00:02]} Kd5 {[%emt 0:00:00]} 49. Kg3 {[%emt 0:00:02]} Ke4 {[%emt 0:00:02]} 50. Re2 {[%emt 0:00:07]} f4+ {[%emt 0:00:21]} 51. Kg4 {[%emt 0:00:02]} 0-1

[Event "3rd Rio Open-Blitz 2024"]
[Site "Rio de Janeiro"]
[Date "2024.04.27"]
[Round "3.4"]
[White "Librelato, Kathie Goulart"]
[Black "Lage, Pedro Ferreira"]
[Result "1-0"]
[ECO "B21"]
[WhiteElo "2165"]
[BlackElo "2061"]
[Annotator "NA RC"]
[PlyCount "59"]
[EventDate "2024.04.12"]
[EventType "swiss"]
[EventCountry "BRA"]
[SourceTitle "playchess.com"]
[Source "ChessBase"]
[SourceQuality "1"]
[TimeControl "180+2"]

1. e4 {[%emt 0:00:02]} c5 {[%emt 0:00:03]} 2. d3 {[%emt 0:00:01]} Nc6 {[%emt 0:00:02]} 3. f4 {[%emt 0:00:01]} g6 {[%emt 0:00:01]} 4. Nf3 {[%emt 0:00:01]} Bg7 {[%emt 0:00:00]} 5. Be2 {[%emt 0:00:02]} e6 {[%emt 0:00:03]} 6. O-O {[%emt 0:00:02]} Nge7 {[%emt 0:00:01]} 7. Kh1 {[%emt 0:00:08]} O-O {[%emt 0:00:02]} 8. c3 {[%emt 0:00:01]} d5 {[%emt 0:00:02]} 9. e5 {[%emt 0:00:01]} Nf5 {[%emt 0:00:05]} 10. Qe1 {[%emt 0:00:11]} f6 {[%emt 0:00:19]} 11. exf6 {[%emt 0:00:30]} Bxf6 {[%emt 0:00:12]} 12. Bd1 {[%emt 0:00:07]} Qc7 {[%emt 0:01:26]} 13. Na3 {[%emt 0:00:07]} e5 {[%emt 0:00:05]} 14. fxe5 {[%emt 0:00:14]} Nxe5 {[%emt 0:00:01]} 15. Bb3 {[%emt 0:00:42]} c4 {[%emt 0:00:19]} 16. dxc4 {[%emt 0:00:13]} dxc4 {[%emt 0:00:13]} 17. Nxe5 {[%emt 0:00:33]} cxb3 {[%emt 0:00:02]} 18. Ng4 {[%emt 0:00:05]} Bg7 {[%emt 0:00:06]} 19. axb3 {[%emt 0:00:04]} Bd7 {[%emt 0:00:10]} 20. Bf4 {[%emt 0:00:10]} Qb6 {[%emt 0:00:16]} 21. b4 {[%emt 0:00:10]} Rae8 {[%emt 0:00:03]} 22. Qd1 {[%emt 0:00:01]} Be6 {[%emt 0:00:03]} 23. Nc2 {[%emt 0:00:12]} Bc4 {[%emt 0:00:02]} 24. Re1 {[%emt 0:00:04]} Rxe1+ {[%emt 0:00:06]} 25. Qxe1 {[%emt 0:00:01]} Nd6 {[%emt 0:00:06]} 26. Bg3 {[%emt 0:00:03]} Re8 {[%emt 0:00:02]} 27. Qd2 {[%emt 0:00:01]} Ne4 {[%emt 0:00:01]} 28. Qe3 {[%emt 0:00:04]} Nd6 {[%emt 0:00:02]} 29. Qxb6 {[%emt 0:00:01]} axb6 {[%emt 0:00:01]} 30. Bxd6 {[%emt 0:00:10]} 1-0

[Event "3rd Rio Open-Blitz 2024"]
[Site "Rio de Janeiro"]
[Date "2024.04.27"]
[Round "3.5"]
[White "Urquiza, Marcello de Albuquer"]
[Black "Souza, Iago Henrique da Sil"]
[Result "1-0"]
[ECO "B15"]
[WhiteElo "2005"]
[BlackElo "2052"]
[Annotator "NA RC"]
[PlyCount "53"]
[EventDate "2024.04.12"]
[EventType "swiss"]
[EventCountry "BRA"]
[SourceTitle "playchess.com"]
[Source "ChessBase"]
[SourceQuality "1"]
[TimeControl "180+2"]

1. e4 {[%emt 0:00:01]} c6 {[%emt 0:00:01]} 2. d4 {[%emt 0:00:02]} d5 {[%emt 0:00:01]} 3. Nc3 {[%emt 0:00:01]} dxe4 {[%emt 0:00:01]} 4. Nxe4 {[%emt 0:00:01]} Nf6 {[%emt 0:00:02]} 5. Nxf6+ {[%emt 0:00:02]} exf6 {[%emt 0:00:01]} 6. c3 {[%emt 0:00:01]} Bd6 {[%emt 0:00:01]} 7. Bd3 {[%emt 0:00:02]} O-O {[%emt 0:00:02]} 8. Qc2 {[%emt 0:00:01]} Re8+ {[%emt 0:00:01]} 9. Ne2 {[%emt 0:00:01]} h5 {[%emt 0:00:02]} 10. O-O {[%emt 0:00:06]} Nd7 {[%emt 0:00:05]} 11. Bf4 {[%emt 0:00:11]} Rxe2 {[%emt 0:00:03]} 12. Qxe2 {[%emt 0:00:01]} Bxf4 {[%emt 0:00:02]} 13. Qe4 {[%emt 0:00:01]} Bh6 {[%emt 0:00:14]} 14. Qh7+ {[%emt 0:02:59]} Kf8 15. Rfe1 {[%emt 0:00:00]} Ne5 {[%emt 0:00:23]} 16. Qh8+ {[%emt 0:00:00]} Ke7 {[%emt 0:00:02]} 17. Qxd8+ {[%emt 0:00:00]} Kxd8 {[%emt 0:00:01]} 18. dxe5 {[%emt 0:00:00]} Ke7 {[%emt 0:00:11]} 19. exf6+ {[%emt 0:00:00]} Kxf6 {[%emt 0:00:01]} 20. Re8 {[%emt 0:00:00]} b6 {[%emt 0:00:19]} 21. Ba6 {[%emt 0:00:00]} Bxa6 {[%emt 0:00:14]} 22. Rxa8 {[%emt 0:00:00]} Bd3 {[%emt 0:00:09]} 23. Rxa7 {[%emt 0:00:00]} Bf4 {[%emt 0:00:07]} 24. Rd1 {[%emt 0:00:00]} Bf5 {[%emt 0:00:20]} 25. g3 {[%emt 0:00:00]} Be5 {[%emt 0:00:22]} 26. f4 {[%emt 0:00:00]} Bb8 {[%emt 0:00:16]} 27. Rb7 1-0

[Event "3rd Rio Open-Blitz 2024"]
[Site "Rio de Janeiro"]
[Date "2024.04.27"]
[Round "4.1"]
[White "Ribeiro, Matheus Mendes Domin"]
[Black "Hoffman, Alejandro"]
[Result "0-1"]
[ECO "A21"]
[WhiteElo "2228"]
[BlackElo "2379"]
[Annotator "TA"]
[PlyCount "72"]
[EventDate "2024.04.12"]
[EventType "swiss"]
[EventCountry "BRA"]
[SourceTitle "playchess.com"]
[Source "ChessBase"]
[SourceQuality "1"]
[TimeControl "180+2"]

{[%evp 16,72,0,-2,19,0,62,0,8,-19,-11,-26,-23,-51,-27,-56,94,-25,36,-16,31,-156,-38,-83,-86,-328,-326,-327,-316,-323,-329,-322,-322,-382,-41,-1382,-157,-155,-144,-154,-150,-176,-131,-503,-31,-560,-570,-566,-565,-681,-673,-1031,-1024,-991,-778,-737,-724,-696,-686]} 1. c4 {[%emt 0:00:02]} g6 {[%emt 0:00:02]} 2. Nc3 {[%emt 0:00:02]} Bg7 {[%emt 0:00:02]} 3. g3 {[%emt 0:00:04]} e5 {[%emt 0:00:02]} 4. Bg2 {[%emt 0:00:01]} f5 {[%emt 0:00:02]} 5. e3 {[%emt 0:00:04]} Nf6 {[%emt 0:00:06]} 6. Nge2 {[%emt 0:00:02]} O-O {[%emt 0:00:03]} 7. O-O {[%emt 0:00:02]} c6 {[%emt 0:00:12]} 8. d4 {[%emt 0:00:30][%cal Bd2d4,Bd4d5][%mdl 32]} d6 {[%emt 0:00:03]} 9. b3 {[%emt 0:00:04]} Qe7 {[%emt 0:00:05]} 10. Bb2 {[%emt 0:00:02]} g5 {[%emt 0:00:09]} (10... Na6 $11) 11. Qc2 {[%emt 0:00:21]} (11. f3 $1 $14) 11... Na6 {[%emt 0:00:03] The position is equal.} 12. a3 {[%emt 0:00:01]} e4 {[%emt 0:00:08]} 13. d5 {[%emt 0:00:09]} Nc5 {[%emt 0:00:05]} 14. Nd4 {[%emt 0:00:13]} Bd7 {[%emt 0:00:03]} 15. Rad1 {[%emt 0:00:17]} Nd3 {[%emt 0:00:03]} (15... Ng4 $15 {keeps the upper hand.}) 16. Ba1 {[%emt 0:00:13]} (16. Rxd3 c5 17. Ne6 exd3 18. Qxd3 Ng4) (16. dxc6 $1 $16 Nxb2 (16... bxc6 17. Rxd3 exd3 18. Qxd3 $16) 17. cxb7) 16... cxd5 {[%emt 0:00:11]} (16... Ne5 $11) 17. cxd5 {[%emt 0:00:01]} (17. Rxd3 $14 exd3 18. Qxd3) 17... Rac8 {[%emt 0:00:01]} (17... Rae8 $11) 18. f3 $2 {[%emt 0:00:04]} (18. Rxd3 $1 $14 exd3 19. Qxd3) 18... Nc5 {[%emt 0:00:18] Black is more active.} (18... exf3 $1 $17 19. Rxd3 fxg2 20. Qxg2 Ng4) 19. b4 {[%emt 0:00:27]} Na4 {[%emt 0:00:03] aiming for ...Nxc3.} (19... exf3 20. Bxf3 Nce4 (20... Qxe3+ 21. Kg2 $11) 21. Qd3 $11) 20. Qb3 {[%emt 0:00:01]} (20. Qd2 $17 exf3 21. Bxf3 Nxc3 22. Bxc3) 20... Nxc3 $19 {[%emt 0:00:04]} 21. Bxc3 {[%emt 0:00:01]} exf3 {[%emt 0:00:02]} 22. Rxf3 {[%emt 0:00:17][%cal Od4e6] [#]} g4 $1 {[%emt 0:00:01]} 23. Rf2 {[%emt 0:00:21]} Qxe3 {[%emt 0:00:02]} 24. Bb2 {[%emt 0:00:08]} Bh6 {[%emt 0:00:32]} ({Black should try} 24... Qxb3 $19 25. Nxb3 Ba4) 25. Bc1 $2 {[%emt 0:00:07][%mdl 8192]} Qxb3 $2 {[%emt 0:00:02]} (25... Rxc1 $19 {has better winning chances.} 26. Rxc1 Qxc1+ 27. Rf1 Qe3+ 28. Qxe3 Bxe3+ 29. Kh1 Bxd4) 26. Nxb3 $17 {[%emt 0:00:01]} Bxc1 {[%emt 0:00:03]} 27. Nxc1 {[%emt 0:00:04]} Rfe8 {[%emt 0:00:03]} 28. Nd3 {[%emt 0:00:01]} Ba4 {[%emt 0:00:03]} 29. Rdd2 {[%emt 0:00:12][%mdl 8192] [#]} (29. Ra1 $17 {is more resistant.}) 29... Rc3 $2 {[%emt 0:00:02]} (29... Ne4 $1 $19 30. Ra2 Nxf2 31. Kxf2 Bb5) 30. Bf1 $2 {[%emt 0:00:06][%mdl 8192]} (30. Rxf5 $15 Rf8 31. Nf4 Rc1+ (31... Rxa3 $2 {is the wrong capture.} 32. Ne6 $18) 32. Kf2) 30... Ne4 $19 {[%emt 0:00:02] Black is clearly winning.} ({Not} 30... Nxd5 31. Nf4 Ne3 32. Nd5 Nxd5 (32... Rxa3 33. Nf6+ Kf7 34. Nxe8 $14) 33. Rxd5 $17) 31. Nf4 {[%emt 0:00:03]} Nxf2 {[%emt 0:00:03]} 32. Rxf2 {[%emt 0:00:00]} Re1 {[%emt 0:00:02][%cal Oa4b5]} 33. Ne6 {[%emt 0:00:02]} Bb5 {[%emt 0:00:05]} 34. Rxf5 {[%emt 0:00:01]} Rxf1+ {[%emt 0:00:02]} ({Worse is} 34... Rxa3 35. Rf8#) 35. Rxf1 {[%emt 0:00:01]} Bxf1 {[%emt 0:00:02]} 36. Kxf1 {[%emt 0:00:01]} Rxa3 {[%emt 0:00:01] Weighted Error Value: White=1.27/Black=0.98.  Loses game:     	White=4     	---        Missed win:     	---       	Black=3      Mistake:       	White=4     	Black=5      Inaccurate:     	White=5     	---        OK:         	White=2     	Black=5      Best:        	---       	Black=2      Strong:       	---       	Black=1} 0-1

[Event "3rd Rio Open-Blitz 2024"]
[Site "Rio de Janeiro"]
[Date "2024.04.27"]
[Round "4.2"]
[White "Urquiza, Marcello de Albuquer"]
[Black "De Siqueira, Luigy Lira"]
[Result "1/2-1/2"]
[ECO "C45"]
[WhiteElo "2005"]
[BlackElo "2274"]
[Annotator "NA RC"]
[PlyCount "86"]
[EventDate "2024.04.12"]
[EventType "swiss"]
[EventCountry "BRA"]
[SourceTitle "playchess.com"]
[Source "ChessBase"]
[SourceQuality "1"]
[TimeControl "180+2"]

1. e4 {[%emt 0:00:01]} e5 {[%emt 0:00:01]} 2. Nf3 {[%emt 0:00:01]} Nc6 {[%emt 0:00:01]} 3. d4 {[%emt 0:00:00]} exd4 {[%emt 0:00:01]} 4. Nxd4 {[%emt 0:00:01]} Bc5 {[%emt 0:00:01]} 5. Nb3 {[%emt 0:00:01]} Bb6 {[%emt 0:00:01]} 6. Nc3 {[%emt 0:00:02]} Nf6 {[%emt 0:00:01]} 7. Qe2 {[%emt 0:00:10]} O-O {[%emt 0:00:02]} 8. Be3 {[%emt 0:00:00]} d5 {[%emt 0:00:01]} 9. O-O-O {[%emt 0:00:05]} d4 {[%emt 0:00:01]} 10. Nb5 {[%emt 0:00:11]} Qe7 {[%emt 0:00:50]} 11. N5xd4 {[%emt 0:00:07]} Nxd4 {[%emt 0:00:13]} 12. Bxd4 {[%emt 0:00:08]} Qxe4 {[%emt 0:00:01]} 13. f3 {[%emt 0:02:41]} Qxe2 {[%emt 0:00:09]} 14. Bxe2 {[%emt 0:00:00]} Re8 {[%emt 0:00:11]} 15. Bd3 {[%emt 0:00:00]} Be6 {[%emt 0:00:08]} 16. Rhe1 {[%emt 0:00:00]} Bxb3 {[%emt 0:00:49]} 17. Bxf6 {[%emt 0:00:00]} Bxa2 {[%emt 0:00:02]} 18. Bc3 {[%emt 0:00:00]} Be6 {[%emt 0:00:15]} 19. Be4 {[%emt 0:00:00]} c6 {[%emt 0:00:01]} 20. g4 {[%emt 0:00:00]} a5 {[%emt 0:00:02]} 21. h4 {[%emt 0:00:00]} a4 {[%emt 0:00:01]} 22. h5 {[%emt 0:00:04]} a3 {[%emt 0:00:02]} 23. bxa3 {[%emt 0:00:04]} Rxa3 {[%emt 0:00:07]} 24. Bb2 {[%emt 0:00:02]} Raa8 {[%emt 0:00:24]} 25. Rd3 {[%emt 0:00:07]} Rad8 {[%emt 0:00:03]} 26. Red1 {[%emt 0:00:02]} Bc4 {[%emt 0:00:04]} 27. Rxd8 {[%emt 0:00:02]} Rxd8 {[%emt 0:00:01]} 28. Rxd8+ {[%emt 0:00:01]} Bxd8 {[%emt 0:00:01]} 29. Kd2 {[%emt 0:00:02]} Ba5+ {[%emt 0:00:06]} 30. Bc3 {[%emt 0:00:03]} Bxc3+ {[%emt 0:00:04]} 31. Kxc3 {[%emt 0:00:01]} Bb5 {[%emt 0:00:03]} 32. Kb4 {[%emt 0:00:01]} g6 {[%emt 0:00:10]} 33. hxg6 {[%emt 0:00:02]} hxg6 {[%emt 0:00:01]} 34. Kc5 {[%emt 0:00:01]} Kg7 {[%emt 0:00:03]} 35. Kb6 {[%emt 0:00:02]} Ba6 {[%emt 0:00:07]} 36. Bd3 {[%emt 0:00:01]} Bxd3 {[%emt 0:00:01]} 37. cxd3 {[%emt 0:00:00]} Kf6 {[%emt 0:00:01]} 38. Kxb7 {[%emt 0:00:01]} Ke5 {[%emt 0:00:02]} 39. Kxc6 {[%emt 0:00:02]} Kd4 {[%emt 0:00:01]} 40. Kd6 {[%emt 0:00:01]} Kxd3 {[%emt 0:00:01]} 41. Ke7 {[%emt 0:00:00]} f5 {[%emt 0:00:02]} 42. gxf5 {[%emt 0:00:02]} gxf5 {[%emt 0:00:00]} 43. Kf6 {[%emt 0:00:04]} Ke3 {[%emt 0:00:06]} 1/2-1/2